bitfinex/quotes_ETHUSD_20260120
["timestamp","ask_amount","ask_price","bid_price","bid_amount"]
[1768892576691,0.00080016,3117.4,3116.8,0.519]
[1768892576891,0.00080016,3117.4,3116.8,3.72740951]
[1768892577119,0.00080016,3117.4,3116.8,0.519]
[1768892577463,0.00080016,3117.4,3116.8,3.72740704]
[1768892577833,0.00080016,3117.4,3116.8,0.519]
[1768892578761,0.00080016,3117.4,3116.8,3.72741775]
[1768892579622,0.00080016,3117.4,3116.9,12.52067847]
[1768892580051,0.00080016,3117.4,3117.1,12.52067847]
[1768892580369,0.00080016,3117.7,3117.1,12.52067847]
[1768892581230,0.00080016,3117.7,3117.0,3.20901326]
[1768892581537,0.00080016,3117.7,3117.0,18.93790475]
[1768892581736,0.00080016,3118.5,3117.5,12.52147871]
[1768892581948,0.00080016,3118.5,3117.8,3.20819006]
[1768892582158,0.00080016,3118.5,3117.8,18.93625835]
[1768892582479,0.00080016,3118.5,3117.9,12.52067847]
[1768892582974,0.00080016,3118.5,3117.8,0.00080024]
[1768892583471,0.00080016,3118.5,3117.8,12.52147871]
[1768892583684,0.00080016,3118.5,3117.9,12.52067847]
[1768892583965,0.00080016,3118.5,3118.0,13.03867847]
[1768892584174,0.00080016,3118.5,3118.0,0.518]
[1768892584385,12.97063667,3118.5,3117.8,0.00080024]
[1768892584680,12.97063667,3119.1,3117.8,0.518]
[1768892584877,13.93170665,3119.0,3118.4,0.00080024]
[1768892585375,13.93170665,3119.0,3118.1,0.00080024]
[1768892585581,13.93170665,3119.0,3117.8,0.00080032]
[1768892585582,12.96983651,3118.4,3117.8,0.00080032]
[1768892586462,0.00080024,3118.5,3117.8,0.00080032]
[1768892586641,0.00080024,3118.5,3117.8,12.52147879]
[1768892587149,12.97063675,3118.5,3117.8,0.00080032]
[1768892587677,0.00080024,3118.5,3117.8,0.00080032]
[1768892590348,12.97063675,3118.5,3117.8,0.00080032]
[1768892590548,0.00080024,3118.5,3117.8,0.00080032]
[1768892590798,12.97063675,3118.5,3117.8,0.00080032]
[1768892590998,1.29706368,3118.4,3117.8,0.00080032]
[1768892591493,0.00080024,3118.5,3117.8,12.52147879]
[1768892592149,0.00080024,3118.5,3118.0,12.52067847]
[1768892592349,0.00080024,3118.5,3118.1,0.518]
[1768892593687,12.97063675,3118.5,3118.1,0.41496192]
[1768892593857,12.97063675,3118.5,3117.8,0.00080032]
[1768892594055,14.26690019,3118.4,3117.8,0.00080032]
[1768892595113,12.97063683,3118.2,3117.5,0.00080024]
[1768892595933,12.96983651,3118.0,3117.2,0.002]
[1768892596115,12.96983651,3117.6,3117.2,0.00119976]
[1768892596277,12.96983651,3117.6,3117.0,0.00080024]
[1768892596460,13.25848345,3117.5,3116.9,0.002]
[1768892596666,13.25924747,3117.4,3116.9,0.002]
[1768892596918,13.25837126,3117.3,3116.7,0.00080056]
[1768892597123,14.29575366,3117.2,3116.7,0.00080056]
[1768892597611,12.97063707,3117.1,3116.4,0.0008004]
[1768892600272,0.00080056,3117.1,3116.4,0.0008004]
[1768892606509,12.49104167,3117.1,3116.4,0.0008004]
[1768892607112,12.49104167,3117.1,3116.3,0.518]
[1768892607415,12.49024111,3116.7,3116.1,0.00160088]
[1768892607719,0.00080056,3117.1,3116.1,0.00160088]
[1768892607883,0.00080056,3117.1,3116.4,12.09449146]
[1768892608198,0.00080024,3117.4,3116.8,12.09369098]
[1768892608527,0.00080024,3117.4,3116.7,0.00080064]
[1768892609382,12.49024111,3117.3,3116.7,0.00080064]
[1768892610582,13.00524111,3117.2,3116.7,0.00080064]
[1768892610778,0.00080064,3117.1,3116.4,0.00080048]
[1768892611097,12.49024111,3117.0,3116.4,0.00080048]
[1768892612387,12.49024111,3117.0,3116.7,0.002]
[1768892612585,1.24910417,3116.9,3116.4,0.00080048]
[1768892612784,0.001,3116.8,3116.4,0.00080048]
[1768892613419,0.001,3116.8,3116.4,0.00280048]
[1768892613585,0.001,3116.8,3116.1,0.00160088]
[1768892613785,0.00180048,3116.8,3116.1,12.09529186]
[1768892615331,0.00180048,3116.8,3116.2,12.09369098]
[1768892616189,0.00080064,3117.1,3116.5,12.09369098]
[1768892616405,0.00080064,3117.1,3116.5,12.61269098]
[1768892616915,0.00080024,3117.4,3116.6,12.09369098]
[1768892617118,0.00080024,3117.4,3116.8,12.09369098]
[1768892617318,0.00080024,3117.7,3116.9,12.09369098]
[1768892617489,0.00080024,3117.7,3117.1,12.09369098]
[1768892617687,0.00080024,3117.7,3117.0,0.00080032]
[1768892617890,0.00080024,3117.7,3117.1,0.519]
[1768892619790,0.00080024,3117.7,3117.1,15.8207785]
[1768892620116,0.00080024,3117.7,3117.2,12.09369098]
[1768892620420,0.00080024,3117.7,3117.1,0.519]
[1768892621534,0.00080032,3118.2,3117.2,12.09369098]
[1768892621717,0.00080032,3118.2,3117.6,12.09369098]
[1768892621928,0.00080024,3118.5,3117.8,12.09369098]
[1768892622096,0.00180024,3118.8,3118.2,12.09369098]
[1768892622407,0.00180024,3118.8,3118.3,15.81948376]
[1768892623194,0.00180024,3118.8,3118.3,12.61269098]
[1768892623843,0.00180024,3118.8,3118.3,0.519]
[1768892624344,12.56213808,3118.8,3118.1,0.00080032]
[1768892624640,12.56033784,3118.6,3118.1,0.00080032]
[1768892625311,1.25621381,3118.7,3118.1,0.00080032]
[1768892625511,0.00180024,3118.8,3118.1,0.00080032]
[1768892625912,0.001,3118.5,3118.1,0.00080032]
[1768892631949,0.001,3118.5,3118.1,12.25491352]
[1768892632239,0.001,3118.5,3118.2,0.519]
[1768892633653,0.00180024,3118.8,3118.3,11.92271286]
[1768892633826,0.00180024,3118.8,3118.2,0.519]
[1768892634634,0.00180024,3118.8,3118.2,3.72596836]
[1768892636421,0.00180024,3118.8,3118.2,15.64868122]
[1768892637232,0.00180024,3118.8,3118.3,11.92271286]
[1768892637453,0.00080016,3119.1,3118.6,3.20656704]
[1768892637769,0.00080016,3119.1,3118.7,12.44171286]
[1768892639335,0.00080008,3119.5,3118.7,12.44171286]
[1768892639676,0.00080008,3119.5,3118.8,11.92271286]
[1768892640682,12.70264181,3119.5,3118.7,0.51980024]
[1768892641061,12.70264181,3119.5,3118.7,3.72625315]
[1768892642182,12.70264181,3119.5,3118.7,15.64896601]
[1768892642903,0.00080008,3119.5,3118.8,11.92271286]
[1768892643953,0.00080008,3119.5,3118.8,15.12899842]
[1768892645762,12.70264181,3119.5,3118.7,3.72624786]
[1768892646176,12.70264181,3119.5,3118.7,3.20724786]
[1768892646497,12.70184173,3119.3,3118.7,0.00080024]
[1768892646792,12.70184173,3119.3,3118.7,0.51980024]
[1768892649299,12.70184173,3119.3,3118.7,0.00080024]
[1768892649471,13.9720259,3119.2,3118.7,0.00080024]
[1768892650493,13.9720259,3119.2,3119.0,0.002]
[1768892650867,13.9730259,3119.2,3119.0,0.002]
[1768892651087,13.9730259,3119.2,3118.7,0.00080024]
[1768892652063,12.70184173,3119.0,3118.4,0.00280032]
[1768892652295,0.29074421,3119.1,3117.8,0.0008004]
[1768892652296,12.70184173,3118.4,3117.8,0.0008004]
[1768892652595,12.9917857,3118.3,3117.8,0.0008004]
[1768892652891,0.28994397,3118.2,3117.8,0.0008004]
[1768892653191,12.70184173,3118.3,3117.8,0.0008004]
[1768892653898,12.70184173,3118.1,3117.5,0.00080032]
[1768892654197,0.28969942,3118.0,3117.5,0.00080032]
[1768892654360,13.21684173,3118.1,3117.5,0.00080032]
[1768892654557,0.28953698,3118.0,3117.5,0.00080032]
[1768892654794,14.48710594,3118.1,3117.5,0.00080032]
[1768892654999,0.28954374,3118.0,3117.5,0.00080032]
[1768892655297,14.48710594,3118.1,3117.5,0.00080032]
[1768892655494,0.0008004,3118.2,3117.5,11.92351318]
[1768892655794,12.99120491,3118.1,3117.5,0.00080032]
[1768892655995,12.70184173,3118.1,3117.5,0.00080032]
[1768892656970,0.0008004,3118.2,3117.5,0.00080032]
[1768892657176,0.28917104,3118.1,3117.5,0.00080032]
[1768892657392,0.0008004,3118.2,3117.5,0.00080032]
[1768892657700,0.28909584,3118.1,3117.5,0.00080032]
[1768892657877,0.0008004,3118.2,3117.5,11.92351318]
[1768892658073,0.28923887,3118.1,3117.5,11.92351318]
[1768892658279,0.0008004,3118.2,3117.5,11.92351318]
[1768892664199,0.0008004,3118.2,3117.8,0.002]
[1768892665190,1.27418794,3118.2,3117.8,0.002]
[1768892665774,13.49126295,3118.2,3117.5,0.00280032]
[1768892666513,0.0008004,3118.2,3117.6,12.95953227]
[1768892666870,12.21787541,3118.2,3117.5,0.00280032]
[1768892670911,12.21707501,3117.6,3117.0,0.00080032]
[1768892671215,12.21707501,3117.4,3117.0,0.00080032]
[1768892671988,12.73387533,3117.7,3117.0,0.00080032]
[1768892672700,0.516,3117.6,3117.0,0.00080032]
[1768892673781,12.73307501,3117.6,3117.0,0.00080032]
[1768892673980,12.21707501,3117.6,3117.0,0.00080032]
[1768892674181,13.75961191,3117.5,3117.0,0.00080032]
[1768892675302,1.5425369,3117.5,3117.0,0.00080032]
[1768892676019,0.516,3117.6,3117.0,0.00080032]
[1768892676894,12.73307501,3117.6,3117.0,0.00080032]
[1768892677076,12.73307501,3117.6,3117.3,0.002]
[1768892677278,12.73307501,3117.6,3117.0,0.00080032]
[1768892677477,12.73307501,3117.6,3117.0,0.00280032]
[1768892677686,1.27338753,3117.5,3117.0,0.00280032]
[1768892677989,12.21707501,3116.4,3115.7,0.002]
[1768892678188,12.73307501,3116.4,3115.7,0.002]
[1768892678388,12.21707501,3116.4,3115.7,0.002]
[1768892678625,1.73786759,3116.3,3115.7,0.002]
[1768892679042,13.9549426,3116.3,3115.7,0.002]
[1768892679444,12.21707501,3116.2,3115.7,0.002]
[1768892680904,12.21787549,3116.2,3115.7,0.002]
[1768892681100,1.71647196,3116.1,3115.6,0.002]
[1768892682727,13.782902,3116.1,3115.3,0.519]
[1768892684199,1.71647196,3116.1,3115.5,12.99691005]
[1768892684434,0.00080048,3116.2,3115.5,0.0008004]
[1768892684435,12.06723052,3116.2,3115.5,0.0008004]
[1768892685802,12.06643004,3115.8,3115.2,0.00080032]
[1768892689195,12.06643004,3115.2,3114.8,0.002]
[1768892689396,12.06643004,3115.0,3114.1,12.99610965]
[1768892690212,12.06643004,3115.0,3113.8,13.51510965]
[1768892690421,12.06643004,3114.9,3113.3,12.99610965]
[1768892691037,12.06643004,3114.7,3113.9,0.002]
[1768892691239,12.06643004,3114.5,3113.9,0.002]
[1768892691652,1.84870418,3114.8,3112.4,16.21104849]
[1768892691653,12.06643004,3114.3,3112.4,16.21104849]
[1768892691797,12.06643004,3114.1,3112.4,16.21104849]
[1768892692640,12.06643004,3114.1,3112.5,12.99610965]
[1768892693030,12.06643004,3114.0,3112.6,16.20885783]
[1768892693754,12.06643004,3114.0,3112.6,19.42160601]
[1768892693963,12.6533293,3113.8,3112.6,16.20885783]
[1768892694320,12.6533293,3115.1,3112.7,12.82722075]
[1768892694559,12.6533293,3114.7,3112.9,12.82722075]
[1768892694761,12.6533293,3114.5,3112.9,12.82722075]
[1768892694980,12.6533293,3114.3,3112.8,0.519]
[1768892695114,12.6533293,3114.3,3112.4,0.002]
[1768892695115,12.6533293,3113.9,3112.4,0.002]
[1768892695315,12.6533293,3113.7,3112.4,0.002]
[1768892695520,9.63329265,3114.2,3112.4,0.002]
[1768892695521,12.6533293,3113.5,3112.4,0.002]
[1768892695753,1.26533293,3113.4,3112.5,3.21282442]
[1768892695957,0.516,3113.3,3112.4,12.82922075]
[1768892696279,0.516,3113.3,3112.6,12.82722075]
[1768892696470,0.516,3113.4,3112.8,3.21251264]
[1768892696764,0.516,3113.5,3112.8,3.21251264]
[1768892696922,0.516,3113.5,3112.7,16.03983809]
[1768892697525,12.6533293,3113.7,3112.7,16.03983809]
[1768892697735,12.6533293,3113.7,3112.7,19.25248306]
[1768892697942,0.517,3114.0,3112.8,12.82722075]
[1768892698249,0.517,3114.0,3112.9,13.34722075]
[1768892698550,13.1703293,3114.0,3112.9,13.34722075]
[1768892698725,13.97036223,3114.0,3112.9,13.34722075]
[1768892698929,0.517,3113.9,3112.9,13.34722075]
[1768892699170,13.97036223,3114.0,3113.0,3.21233536]
[1768892699469,1.31703293,3114.0,3113.1,12.82722075]
[1768892699768,0.517,3114.0,3113.1,12.82722075]
[1768892700331,12.6533293,3114.1,3113.1,12.82722075]
[1768892700525,13.1703293,3114.1,3113.1,12.82722075]
[1768892701464,13.1703293,3114.1,3113.1,16.0393912]
[1768892701666,13.1703293,3114.1,3113.1,19.25162338]
[1768892701897,0.517,3114.0,3113.1,19.25162338]
[1768892702104,12.6533293,3114.1,3113.1,19.25162338]
[1768892702459,0.517,3114.1,3113.2,12.82722075]
[1768892702769,13.1703293,3114.1,3112.9,13.35122075]
[1768892703022,12.6533293,3114.0,3112.9,0.524]
[1768892703322,12.6533293,3113.8,3112.9,0.524]
[1768892703480,12.6533293,3113.6,3112.9,0.524]
[1768892704262,12.6533293,3113.6,3112.9,0.004]
[1768892707269,0.517,3113.5,3112.9,0.004]
[1768892708009,0.517,3113.4,3113.1,0.004]
[1768892708211,13.1703293,3113.4,3112.5,0.52]
[1768892708416,12.6533293,3113.2,3112.5,0.52]
[1768892709801,12.6533293,3113.2,3112.4,0.002]
[1768892710005,12.6533293,3113.1,3112.4,0.002]
[1768892710203,12.6533293,3112.9,3112.4,0.002]
[1768892710502,12.6533293,3112.9,3112.0,0.522]
[1768892710503,12.6533293,3112.9,3112.0,0.002]
[1768892710683,12.6533293,3112.7,3112.0,0.002]
[1768892711509,0.517,3112.6,3112.0,0.002]
[1768892711906,13.1703293,3112.6,3112.0,0.002]
[1768892712540,0.517,3112.6,3112.0,0.002]
[1768892712795,0.517,3112.6,3112.0,12.82922075]
[1768892712993,12.6533293,3112.9,3112.0,12.82922075]
[1768892713190,0.0008,3113.8,3112.0,12.82922075]
[1768892713471,0.5178,3113.8,3112.2,12.82722075]
[1768892713685,0.0008,3113.8,3112.2,12.82722075]
[1768892713890,0.0008,3113.8,3112.4,12.85181852]
[1768892714092,0.0008,3114.4,3113.5,12.82722075]
[1768892714295,0.0018,3114.7,3114.1,12.82722075]
[1768892714511,0.0018,3114.7,3114.3,12.82722075]
[1768892714729,0.0018,3114.7,3114.2,0.52]
[1768892714908,13.17112978,3115.3,3114.4,12.82722075]
[1768892714909,0.00080048,3115.3,3114.4,12.82722075]
[1768892716036,0.00080048,3115.3,3114.6,12.82722075]
[1768892716182,0.00080048,3115.3,3114.7,0.52]
[1768892716387,0.00080048,3115.3,3114.3,0.00080008]
[1768892716617,12.65412978,3115.3,3114.4,0.52]
[1768892716825,1.26541298,3115.2,3114.4,0.52]
[1768892718226,12.6533293,3115.1,3114.4,0.52]
[1768892718524,1.26541298,3115.2,3114.4,3.73087243]
[1768892718698,0.00080048,3115.3,3114.5,12.82722075]
[1768892719400,0.00160088,3116.5,3114.7,15.61975775]
[1768892719601,0.00080056,3116.8,3116.1,0.00160104]
[1768892719806,0.28923424,3116.7,3116.1,0.00160104]
[1768892719991,12.6533293,3116.7,3116.1,0.00160104]
[1768892720190,1.26541299,3116.6,3116.1,0.00160104]
[1768892720390,13.91874229,3116.6,3115.8,0.00080056]
[1768892720614,12.6533293,3116.4,3115.8,0.00080056]
[1768892720820,0.29078748,3116.5,3115.8,0.00080056]
[1768892720821,0.00160104,3116.5,3115.8,0.00080056]
[1768892722198,0.00160104,3116.5,3115.9,0.52]
[1768892724114,0.00160104,3116.5,3115.8,0.00080056]
[1768892724314,0.00160104,3116.5,3115.9,0.52]
[1768892724520,1.37062082,3116.4,3115.9,0.52]
[1768892725005,0.00160104,3116.5,3115.9,0.52]
[1768892725623,0.00160104,3116.5,3115.8,0.52080056]
[1768892726238,0.00160104,3116.5,3115.8,12.77396587]
[1768892726744,0.001,3116.3,3115.8,12.77396587]
[1768892727639,0.001,3116.3,3115.8,12.25396587]
[1768892727831,0.001,3116.3,3115.9,0.52]
[1768892728140,0.001,3116.3,3116.0,0.52]
[1768892728442,0.001,3116.3,3115.8,12.25396587]
[1768892728605,0.001,3116.3,3115.9,0.52]
[1768892729129,0.001,3116.3,3116.0,0.52]
[1768892732432,0.001,3116.3,3115.8,0.00080056]
[1768892732433,12.44019419,3116.3,3115.8,0.00080056]
[1768892732641,1.24401942,3116.2,3115.8,0.00080056]
[1768892732848,0.001,3116.3,3115.8,0.00080056]
[1768892732849,0.001,3116.3,3115.8,12.25396587]
[1768892733145,0.001,3116.3,3115.9,12.25316531]
[1768892733445,0.001,3116.3,3116.0,0.52]
[1768892734834,0.00160104,3116.5,3116.0,12.77316531]
[1768892735626,0.00080056,3116.8,3116.2,12.25316531]
[1768892735814,0.00080072,3117.1,3116.2,12.25316531]
[1768892736036,0.00080072,3117.1,3116.5,12.25316531]
[1768892736442,0.00080072,3117.1,3116.6,12.77316531]
[1768892737451,0.00080072,3117.1,3116.6,0.52]
[1768892737754,0.00080072,3117.1,3116.7,0.52]
[1768892737960,1.24409949,3117.0,3116.7,0.52]
[1768892739034,12.71996442,3117.0,3116.4,0.00080064]
[1768892739361,12.71996442,3117.0,3116.4,0.52080064]
[1768892740251,9.39596442,3117.0,3116.4,0.52080064]
[1768892740452,0.00080072,3117.1,3116.4,0.52080064]
[1768892740762,0.00080072,3117.1,3116.4,14.05136255]
[1768892741766,0.00080072,3117.1,3116.5,12.25316531]
[1768892742588,0.00080072,3117.1,3116.6,12.25316531]
[1768892743168,0.00080032,3117.4,3116.8,12.7891629]
[1768892743551,0.00080032,3117.7,3117.1,12.7891629]
[1768892743746,0.00080032,3117.7,3117.2,0.52]
[1768892746171,12.68727732,3117.7,3117.1,0.52]
[1768892746471,1.26872773,3117.6,3117.0,0.0008004]
[1768892746673,13.95520473,3117.6,3117.0,0.0008004]
[1768892747167,12.6872774,3117.4,3116.7,0.5208008]
[1768892747343,0.0008004,3117.4,3116.7,13.3099637]
[1768892747944,0.0008004,3117.4,3116.8,12.7891629]
[1768892748796,0.00080032,3117.7,3117.1,12.7891629]
[1768892748941,0.00080032,3117.7,3117.2,13.3091629]
[1768892749142,0.00080032,3117.7,3117.2,12.7891629]
[1768892749339,0.00080032,3117.7,3117.2,13.3091629]
[1768892749960,0.00080032,3117.7,3117.0,0.00080048]
[1768892750165,0.001,3117.3,3117.1,0.52]
[1768892750554,0.001,3117.3,3117.0,0.00080048]
[1768892751071,1.2697477,3117.3,3116.7,0.0008008]
[1768892751747,0.001,3117.3,3116.7,12.7899637]
[1768892753464,0.001,3117.3,3116.8,0.519]
[1768892754180,0.001,3117.3,3116.7,0.0008008]
[1768892754362,0.001,3117.3,3116.7,0.5198008]
[1768892756591,0.001,3117.3,3116.7,0.0008008]
[1768892756996,0.001,3117.3,3116.8,12.24978976]
[1768892757548,0.001,3117.3,3116.9,12.24978976]
[1768892757755,0.00080048,3117.4,3116.9,12.24978976]
[1768892758170,0.00080048,3117.4,3117.0,12.76978976]
[1768892758560,0.00080032,3117.7,3117.1,12.24978976]
[1768892758761,0.00080032,3117.7,3117.1,13.52676874]
[1768892759582,0.00080032,3117.7,3117.1,16.73481409]
[1768892759783,0.00080032,3117.7,3117.2,12.24978976]
[1768892760570,0.00180032,3117.9,3117.2,12.24978976]
[1768892760774,0.00180032,3117.9,3117.4,12.24978976]
[1768892760973,0.0008004,3118.2,3117.6,12.24978976]
[1768892762181,0.0008004,3118.2,3117.5,0.39606546]
[1768892762381,0.0008004,3118.2,3117.5,0.0008004]
[1768892762589,0.001,3117.9,3117.5,0.0008004]
[1768892762783,0.0008004,3118.2,3117.6,12.24978976]
[1768892762984,0.0008004,3118.2,3117.7,12.24978976]
[1768892763786,0.0008004,3118.2,3117.8,12.24978976]
[1768892765656,0.00080032,3118.5,3117.9,15.45707671]
[1768892765867,0.00080032,3118.5,3118.0,12.24978976]
[1768892766552,0.00080032,3118.8,3118.1,12.25059016]
[1768892766758,12.19204772,3118.8,3118.1,0.0008004]
[1768892766952,12.1912474,3118.6,3118.1,0.0008004]
[1768892767186,13.43935009,3118.6,3118.1,0.0008004]
[1768892767355,12.1912474,3118.5,3118.1,0.0008004]
[1768892767686,12.7072474,3118.5,3118.1,0.0008004]
[1768892767884,12.7080478,3118.5,3117.8,0.00080048]
[1768892769190,12.1912474,3118.1,3117.5,0.0008004]
[1768892769387,12.1912474,3117.9,3117.5,0.0008004]
[1768892769685,0.0008004,3117.9,3117.3,0.0008004]
[1768892770068,0.0008004,3117.9,3117.4,12.24978976]
[1768892770251,0.0008004,3117.9,3117.5,13.47484878]
[1768892771282,0.0008004,3117.9,3117.3,0.0008004]
[1768892771682,0.0008004,3117.9,3117.4,12.24978976]
[1768892773805,0.0008004,3117.9,3117.4,15.45759033]
[1768892774896,0.0008004,3117.9,3117.7,0.002]
[1768892775267,0.00080048,3118.2,3117.7,12.25178976]
[1768892775784,0.00080048,3118.2,3117.7,15.45920102]
[1768892777598,0.00080048,3118.2,3117.8,12.24978976]
[1768892777971,0.00080048,3118.2,3117.9,3.20728695]
[1768892778372,0.00080048,3118.2,3117.8,15.45713628]
[1768892778778,0.00080048,3118.2,3117.9,12.24978976]
[1768892780891,0.0008004,3118.5,3117.8,12.24978976]
[1768892781080,0.0008004,3118.5,3118.0,12.24978976]
[1768892782202,0.51731785,3118.8,3118.2,12.24978976]
[1768892782397,12.70856525,3118.8,3118.1,0.00080048]
[1768892782810,0.51731785,3118.8,3118.1,12.25059024]
[1768892784403,0.51731785,3118.8,3118.2,12.28935433]
[1768892784782,13.5101115,3118.8,3118.1,0.00080048]
[1768892784997,14.86112265,3118.8,3118.1,0.00080048]
[1768892786418,1.868329,3118.8,3118.1,0.00080048]
[1768892786587,0.51731785,3118.8,3118.1,0.00080048]
[1768892787092,12.99279365,3118.7,3118.2,0.002]
[1768892792643,12.99279365,3118.5,3118.2,0.002]
[1768892792853,0.51731785,3118.8,3118.2,0.002]
[1768892792854,13.28260704,3118.4,3118.2,0.002]
[1768892793018,14.32105435,3118.4,3117.9,0.002]
[1768892793335,12.99279365,3118.3,3117.9,0.002]
[1768892794205,1.3282607,3118.4,3117.9,0.002]
[1768892794405,12.99359413,3118.5,3117.9,0.002]
[1768892794606,0.28972865,3118.4,3117.9,0.002]
[1768892794910,12.99359413,3118.5,3117.9,0.002]
[1768892795108,0.28967145,3118.4,3117.9,0.002]
[1768892795318,12.99359413,3118.5,3117.9,0.002]
[1768892795549,0.28967302,3118.4,3117.9,0.002]
[1768892795751,12.99359413,3118.5,3117.9,0.002]
[1768892795916,0.28967637,3118.4,3117.9,0.002]
[1768892796118,0.00080048,3118.5,3117.9,12.29135433]
[1768892796555,0.00080048,3118.5,3118.0,12.28935433]
[1768892799156,0.00080048,3118.5,3118.1,12.28935433]
[1768892799455,0.51731785,3118.8,3118.1,12.28935433]
[1768892799748,0.28959801,3118.7,3118.1,12.29015489]
[1768892799950,0.51731785,3118.8,3118.1,12.29015489]
[1768892801042,0.00080024,3119.1,3118.4,12.28935433]
[1768892801241,0.00080024,3119.1,3118.4,12.29015473]
[1768892801549,12.99359389,3119.1,3118.4,0.0008004]
[1768892801914,12.99359389,3119.1,3118.4,12.29015473]
[1768892802928,0.00080024,3119.1,3118.4,12.29015473]
[1768892803134,0.00080024,3119.1,3118.7,12.2873698]
[1768892803350,0.00080024,3119.1,3118.6,3.20656704]
[1768892804063,0.00080024,3119.1,3118.6,15.49393684]
[1768892804732,0.00080024,3119.1,3118.7,12.2873698]
[1768892804954,12.85897761,3119.1,3118.4,0.0008004]
[1768892805255,12.85817737,3118.9,3118.4,0.0008004]
[1768892806153,1.803798,3119.1,3118.4,12.2881702]
[1768892806381,0.51780024,3119.1,3118.4,12.2881702]
[1768892808168,0.00080024,3119.1,3118.6,12.2873698]
[1768892810226,0.00080024,3119.1,3118.6,15.49391362]
[1768892810429,12.85897761,3119.1,3118.5,0.52]
[1768892810843,12.85897761,3119.1,3118.5,3.20663904]
[1768892811042,12.85897761,3119.1,3118.6,3.2065623]
[1768892811368,0.001,3118.8,3118.6,3.2065623]
[1768892811664,0.001,3118.8,3118.6,3.20653969]
[1768892812061,0.001,3118.8,3118.6,15.49390949]
[1768892812253,0.00080024,3119.1,3118.7,12.2873698]
[1768892813170,0.00080024,3119.1,3118.5,12.67019831]
[1768892813171,12.31293713,3119.1,3118.5,12.67019831]
[1768892813330,12.82993713,3119.1,3118.4,0.0008004]
[1768892813528,12.31213689,3118.9,3118.4,0.0008004]
[1768892813754,13.62408112,3118.9,3118.4,0.0008004]
[1768892814565,13.62408112,3118.9,3118.1,0.00080056]
[1768892814566,12.31213689,3118.7,3118.1,0.00080056]
[1768892814772,12.31213689,3118.5,3118.1,0.00080056]
[1768892815461,0.517,3118.6,3118.1,0.00080056]
[1768892815666,12.82913689,3118.6,3117.9,0.002]
[1768892815867,12.31213689,3118.4,3117.9,0.002]
[1768892823494,12.31213689,3118.4,3118.2,0.002]
[1768892823798,12.31213689,3118.4,3117.9,0.002]
[1768892824502,0.00080056,3118.5,3117.9,12.67219831]
[1768892826506,0.00080056,3118.5,3118.0,12.67019831]
[1768892828285,0.00080056,3118.5,3118.2,12.67019831]
[1768892829029,0.0018004,3118.8,3118.2,12.67019831]
[1768892830112,12.31213689,3118.7,3118.1,0.00080064]
[1768892830884,12.31213689,3118.5,3118.1,0.00080064]
[1768892831083,12.31213689,3118.3,3118.1,0.00080064]
[1768892832646,1.26016128,3118.4,3117.7,0.002]
[1768892832647,12.31213689,3118.1,3117.7,0.002]
[1768892832849,12.31213689,3117.9,3117.5,0.00080048]
[1768892834071,12.31293737,3117.9,3117.0,0.00080056]
[1768892834352,12.31213689,3117.6,3117.0,0.00080056]
[1768892834527,12.31213689,3117.4,3117.0,0.00080056]
[1768892835617,12.31293745,3117.4,3116.7,0.0008008]
[1768892836753,0.00080056,3117.4,3116.7,0.0008008]
[1768892836927,0.00080056,3117.4,3116.7,12.67099911]
[1768892837112,0.85329049,3117.4,3116.7,12.67099911]
[1768892838721,0.85329049,3117.4,3116.8,12.67019831]
[1768892838921,0.00080056,3117.4,3116.8,12.67019831]
[1768892840450,12.31293745,3117.4,3116.8,12.67019831]
[1768892841249,12.31293745,3117.4,3116.7,0.0008008]
[1768892842450,0.00080056,3117.4,3116.8,12.67019831]
[1768892842756,0.00080056,3117.4,3116.9,12.67019831]
[1768892844956,12.40793247,3117.4,3116.7,12.9902393]
[1768892845162,13.69962516,3117.3,3116.7,12.9902393]
[1768892846721,1.29249325,3117.3,3116.7,12.9902393]
[1768892847033,0.00080056,3117.4,3116.7,12.9902393]
[1768892848459,0.001,3117.1,3116.7,12.9902393]
[1768892849448,0.001,3117.1,3116.7,16.1987441]
[1768892849853,0.001,3117.1,3116.7,12.9902393]
[1768892850156,0.001,3117.1,3116.7,16.19876085]
[1768892850537,0.19236297,3117.5,3117.1,12.9894385]
[1768892850738,0.0008004,3117.7,3117.1,12.9791732]
[1768892851470,0.0008004,3117.7,3117.1,16.18726653]
[1768892852571,12.92493231,3117.7,3117.0,12.99023914]
[1768892852964,12.92493231,3117.7,3117.1,16.19754634]
[1768892853154,0.5178004,3117.7,3117.1,16.19754634]
[1768892853557,12.92493231,3117.7,3117.1,12.9894385]
[1768892853752,12.92493231,3117.7,3117.0,0.00080064]
[1768892858186,0.28810982,3117.6,3117.0,0.00080064]
[1768892858392,12.40713191,3117.5,3117.0,0.00080064]
[1768892860070,0.001,3117.4,3117.0,0.00080064]
[1768892861188,12.40813191,3117.4,3117.0,0.00080064]
[1768892862689,12.73820148,3117.3,3117.0,0.00080064]
[1768892863402,12.22120148,3117.1,3116.6,0.002]
[1768892863588,6.79986573,3116.5,3115.8,0.00080056]
[1768892863894,13.02726663,3116.4,3115.8,0.00080056]
[1768892864214,12.73820148,3116.4,3115.8,12.93072548]
[1768892864506,0.517,3116.4,3115.8,12.93072548]
[1768892864691,0.517,3116.4,3115.8,16.14016388]
[1768892867585,0.517,3116.4,3115.8,12.93072548]
[1768892868305,0.517,3116.4,3115.8,16.14016385]
[1768892868504,0.517,3116.4,3115.8,12.93072548]
[1768892868879,0.517,3116.4,3115.8,16.14015615]
[1768892869809,0.517,3116.4,3115.8,12.93072548]
[1768892870014,12.22120148,3116.3,3115.8,0.00080056]
[1768892871692,12.22120148,3116.3,3116.1,0.002]
[1768892873493,12.22120148,3116.3,3115.8,0.00280056]
[1768892876219,0.517,3116.4,3115.8,12.0338644]
[1768892876605,12.49129538,3116.5,3113.7,12.03186392]
[1768892876606,12.48969418,3114.6,3113.7,12.03186392]
[1768892876805,1.37636043,3114.3,3113.8,12.03106384]
[1768892877011,0.00080008,3114.4,3113.8,12.03106384]
[1768892877212,0.00080008,3114.4,3113.9,12.03106384]
[1768892878916,0.00080008,3114.4,3114.0,12.03106384]
[1768892881084,0.00080008,3114.4,3114.0,15.24232548]
[1768892881613,0.00080008,3114.4,3113.9,15.76243263]
[1768892883218,0.00080008,3114.4,3113.9,12.55106384]
[1768892883417,0.00080008,3114.4,3113.7,0.00080008]
[1768892883418,12.49049426,3114.4,3113.7,0.00080008]
[1768892883736,12.48969418,3114.2,3113.7,0.52080008]
[1768892884090,0.00080008,3114.4,3113.9,15.24246639]